lending/lending_fUSD_20240131
["ID","MTS","AMOUNT","RATE_DAILY","PERIOD"]
[313051521,1706694670991,-2265.45,0.00040547,5]
[313051522,1706694671001,-500.0,0.00040547,5]
[313051523,1706694671012,-787.88,0.00040547,5]
[313051524,1706694671022,-2673.5,0.00040547,5]
[313051525,1706694671032,-500.0,0.00040547,5]
[313051526,1706694671042,-748.94,0.00040547,5]
[313051527,1706694671051,-1979.4,0.00040547,5]
[313051528,1706694671060,-500.0,0.00040547,5]
[313051529,1706694671079,-584.22,0.00040547,5]
[313051530,1706694671089,-500.0,0.00040547,5]
[313051531,1706694671099,-1000.0,0.00040547,120]
[313051532,1706694671108,-511.8989894,0.00040547,5]
[313051533,1706694671117,-787.6,0.00040547,5]
[313051534,1706694671127,-504.994809,0.00040547,5]
[313051535,1706694671136,-1502.45,0.00040547,5]
[313051536,1706694671145,-6992.13,0.00040547,5]
[313051537,1706694671154,-500.0,0.00040547,5]
[313051538,1706694671164,-551.86446131,0.00040547,5]
[313051539,1706694671173,-843.12,0.00040547,5]
[313051540,1706694671183,-356.83669285,0.00040547,5]
[313051541,1706694671193,-500.0,0.00040547,5]
[313051542,1706694671203,-500.0,0.00040547,5]
[313051543,1706694671212,-1311.02,0.00040547,5]
[313051544,1706694671223,-500.0,0.00040547,5]
[313051545,1706694671234,-978.74,0.00040547,5]
[313051546,1706694671244,-500.0,0.00040547,5]
[313051547,1706694671256,-559.12,0.00040547,5]
[313051548,1706694671268,-1639.35,0.00040547,2]
[313051549,1706694671278,-1333.35,0.00040547,5]
[313051550,1706694671288,-3627.45,0.00040547,5]
[313051551,1706694671299,-500.0,0.00040547,5]
[313051552,1706694671308,-923.07,0.00040547,5]
[313051553,1706694671318,-581.32,0.00040547,5]
[313051554,1706694671327,-500.0,0.00040547,5]
[313051555,1706694671337,-2637.97,0.00040547,5]
[313051556,1706694671349,-550.71,0.00040547,5]
[313051557,1706694671360,-2102.91,0.00040547,5]
[313051558,1706694671371,-3266.12,0.00040547,5]
[313051559,1706694671381,-833.84,0.00040547,5]
[313051560,1706694671391,-2975.79,0.00040547,5]
[313051561,1706694671402,-271.70425467,0.00040547,5]
[313051562,1706694671413,-1721.76,0.00040547,5]
[313051563,1706694671423,-3438.52,0.00040547,5]
[313051564,1706694671433,-500.0,0.00040547,5]
[313051565,1706694671443,-1077.78,0.00040547,5]
[313051566,1706694671454,-500.0,0.00040547,5]
[313051567,1706694671463,-500.0,0.00040547,5]
[313051568,1706694671473,-500.0,0.00040547,5]
[313051569,1706694671484,-6564.97,0.00040547,5]
[313051570,1706694671494,-500.0,0.00040547,5]
[313051571,1706694671503,-3801.39,0.00040547,5]
[313051572,1706694671512,-500.0,0.00040547,5]
[313051573,1706694671523,-1008.58,0.00040547,5]
[313051574,1706694671532,-809.55,0.00040547,5]
[313051575,1706694671542,-2556.8,0.00040547,5]
[313051576,1706694671552,-513.37,0.00040547,5]
[313051577,1706694671562,-951.74,0.00040547,5]
[313051578,1706694671572,-635.04,0.00040547,5]
[313051579,1706694671582,-500.0,0.00040547,5]
[313051580,1706694671592,-439.46323389,0.00040547,5]
[313051581,1706694671602,-756.38,0.00040547,5]
[313051582,1706694671611,-758.78,0.00040547,5]
[313051583,1706694671621,-918.29,0.00040547,5]
[313051584,1706694671631,-500.0,0.00040547,5]
[313051585,1706694671642,-1308.87,0.00040547,5]
[313051586,1706694671652,-1172.36,0.00040547,5]
[313051587,1706694671662,-742.8,0.00040547,5]
[313051588,1706694671672,-500.0,0.00040547,5]
[313051589,1706694671681,-1705.38,0.00040547,5]
[313051590,1706694671691,-1681.92,0.00040547,5]
[313051591,1706694671702,-500.0,0.00040547,5]
[313051592,1706694671712,-500.0,0.00040547,5]
[313051593,1706694671721,-500.0,0.00040547,5]
[313051594,1706694671732,-1100.12,0.00040547,5]
[313051595,1706694671742,-623.78,0.00040547,5]
[313051596,1706694671752,-520.11,0.00040547,5]
[313051597,1706694671762,-813.21,0.00040547,5]
[313051598,1706694671772,-538.14,0.00040547,5]
[313051599,1706694671782,-924.1,0.00040547,5]
[313051600,1706694671792,-874.95,0.00040547,5]
[313051601,1706694671802,-500.0,0.00040547,5]
[313051602,1706694671811,-1514.93,0.00040547,5]
[313051603,1706694671822,-500.0,0.00040547,5]
[313051604,1706694671832,-766.97,0.00040547,5]
[313051605,1706694671842,-1419.76,0.00040547,5]
[313051606,1706694671852,-1518.73,0.00040547,5]
[313051607,1706694671863,-778.08,0.00040547,5]
[313051608,1706694671873,-1142.46,0.00040547,5]
[313051609,1706694671883,-1585.17,0.00040547,5]
[313051610,1706694671893,-1360.69,0.00040547,5]
[313051611,1706694671903,-3427.93,0.00040547,5]
[313051612,1706694671914,-2181.53,0.00040547,5]
[313051613,1706694671924,-1681.32,0.00040547,5]
[313051614,1706694671934,-1578.68,0.00040547,5]
[313051615,1706694671945,-2245.27,0.00040547,5]
[313051616,1706694671954,-1541.05,0.00040547,5]
[313051617,1706694671964,-1184.78,0.00040547,5]
[313051618,1706694671973,-759.64,0.00040547,5]
[313051619,1706694671982,-500.0,0.00040547,5]
[313051620,1706694671992,-202.24590154,0.00040547,20]
[313051621,1706694672001,-2411.41,0.00040547,5]
[313051622,1706694672011,-500.0,0.00040547,5]
[313051623,1706694672023,-721.86,0.00040547,5]
[313051624,1706694672033,-500.0,0.00040547,5]
[313051625,1706694672042,-4216.63,0.00040547,5]
[313051626,1706694672053,-875.44,0.00040547,5]
[313051627,1706694672063,-607.11,0.00040547,5]
[313051628,1706694672243,-4080.07,0.00040547,5]
[313051629,1706694672254,-1292.41,0.00040547,5]
[313051630,1706694672264,-2126.77,0.00040547,5]
[313051631,1706694672278,-678.84,0.00040547,5]
[313051632,1706694672290,-837.72,0.00040547,5]
[313051633,1706694672300,-427.89877793,0.00040547,5]
[313051634,1706694672311,-500.0,0.00040547,5]
[313051635,1706694672321,-937.91,0.00040547,5]
[313051636,1706694672332,-500.0,0.00040547,5]
[313051637,1706694672342,-794.23,0.00040547,5]
[313051638,1706694672352,-393.73812143,0.00040547,5]
[313051639,1706694672363,-5428.42,0.00040547,5]
[313051640,1706694672374,-500.0,0.00040547,5]
[313051641,1706694672384,-3250.72,0.00040547,5]
[313051642,1706694672394,-1723.78,0.00040547,5]
[313051643,1706694672404,-1600.13,0.00040547,2]
[313051644,1706694672414,-3841.13,0.00040547,5]
[313051645,1706694672423,-2499.59,0.00040547,5]
[313051646,1706694672433,-916.73,0.00040547,5]
[313051647,1706694672442,-1345.99,0.00040547,5]
[313051648,1706694672453,-1935.43,0.00040547,5]
[313051649,1706694672462,-1282.3,0.00040547,5]
[313051650,1706694672471,-866.24,0.00040547,5]
[313051651,1706694672481,-500.0,0.00040547,5]
[313051652,1706694672491,-501.06,0.00040547,5]
[313051653,1706694672501,-1553.81,0.00040547,5]
[313051654,1706694672511,-716.93,0.00040547,5]
[313051655,1706694672522,-795.16,0.00040547,5]
[313051656,1706694672532,-1701.51,0.00040547,5]
[313051657,1706694672542,-150.79667947,0.00040547,5]
[313051658,1706694672551,-606.4642917,0.00040547,5]
[313051659,1706694672561,-500.0,0.00040547,5]
[313051660,1706694672572,-8182.09,0.00040547,5]
[313051661,1706694672583,-500.0,0.00040547,5]
[313051662,1706694672593,-500.0,0.00040547,5]
[313051663,1706694672603,-1231.59,0.00040547,5]
[313051664,1706694672612,-251.76775449,0.00040547,5]
[313051665,1706694672622,-2488.68,0.00040547,5]
[313051666,1706694672633,-500.0,0.00040547,5]
[313051667,1706694672643,-500.0,0.00040547,5]
[313051668,1706694672653,-500.0,0.00040547,5]
[313051669,1706694672663,-591.5671903,0.00040547,5]
[313051670,1706694672674,-500.0,0.00040547,5]
[313051671,1706694672684,-2438.4,0.00040547,5]
[313051672,1706694672694,-630.62,0.00040547,5]
[313051673,1706694672705,-6886.74,0.00040547,5]
[313051674,1706694672716,-1589.99,0.00040547,5]
[313051675,1706694672726,-5341.94,0.00040547,5]
[313051676,1706694672737,-2893.31,0.00040547,5]
[313051677,1706694672748,-1171.68,0.00040547,5]
[313051678,1706694672759,-500.0,0.00040547,5]
[313051679,1706694672769,-1344.97,0.00040547,5]
[313051680,1706694672779,-627.97,0.00040547,5]
[313051681,1706694672790,-1574.66,0.00040547,5]
[313051682,1706694672800,-1680.53,0.00040547,5]
[313051683,1706694672810,-5421.11,0.00040547,5]
[313051684,1706694672820,-671.46,0.00040547,5]
[313051685,1706694672829,-500.0,0.00040547,5]
[313051686,1706694672838,-1906.82,0.00040547,5]
[313051687,1706694672848,-570.44,0.00040547,5]
[313051688,1706694672858,-636.47,0.00040547,5]
[313051689,1706694672868,-795.9,0.00040547,5]
[313051690,1706694672878,-2775.51,0.00040547,5]
[313051691,1706694672888,-1259.66,0.00040547,5]
[313051692,1706694672898,-500.0,0.00040547,5]
[313051693,1706694672908,-1151.18,0.00040547,5]
[313051694,1706694672917,-500.0,0.00040547,5]
[313051695,1706694672927,-1296.01,0.00040547,5]
[313051696,1706694672937,-564.87,0.00040547,5]
[313051697,1706694672948,-1074.73,0.00040547,5]
[313051698,1706694672958,-3009.11,0.00040547,5]
[313051699,1706694672968,-2425.31,0.00040547,5]
[313051700,1706694672978,-500.0,0.00040547,2]
[313051701,1706694672988,-645.98414923,0.00040547,5]
[313051702,1706694672998,-3095.04,0.00040547,5]
[313051703,1706694673008,-500.0,0.00040547,5]
[313051704,1706694673019,-741.97,0.00040547,2]
[313051705,1706694673031,-500.0,0.00040547,5]
[313051706,1706694673042,-618.57,0.00040547,5]
[313051707,1706694673052,-500.0,0.00040547,5]
[313051708,1706694673062,-1533.89,0.00040547,5]
[313051709,1706694673072,-621.35,0.00040547,5]
[313051710,1706694673082,-1562.28,0.00040547,5]
[313051711,1706694673092,-1131.88,0.00040547,5]
[313051712,1706694673101,-500.0,0.00040547,5]
[313051713,1706694673111,-1000.0,0.00040547,2]
[313051714,1706694673121,-2108.04,0.00040547,5]
[313051715,1706694673131,-500.0,0.00040547,2]
[313051716,1706694673141,-500.0,0.00040547,5]
[313051717,1706694673152,-3901.96,0.00040547,5]
[313051718,1706694673162,-1224.84,0.00040547,5]
[313051719,1706694673172,-1312.53,0.00040547,5]
[313051720,1706694673182,-542.16,0.00040547,5]
[313051721,1706694673191,-500.0,0.00040547,5]
[313051722,1706694673202,-500.0,0.00040547,5]
[313051723,1706694673211,-493.53552097,0.00040547,2]
[313051724,1706694673567,-20477.36865115,0.00040547,2]
[313051725,1706694673577,-570.86,0.00040733,2]
[313051726,1706694673587,-151.0131,0.00040748,12]
[313051727,1706694673597,-2191.466805,0.000408,37]
[313051728,1706694673608,-176.76,0.00040836,2]
[313051729,1706694673618,-1500.0,0.00040888,20]
[313051730,1706694673627,-300.0,0.000409,14]
[313051731,1706694673637,-1370.16219354,0.00040975,33]
[313051732,1706694673647,-236.84525382,0.00040975,30]
[313051733,1706694673657,-3095.0,0.00040975,30]
[313051734,1706694673666,-2008.3,0.00040975,2]
[313051735,1706694673677,-623.83990693,0.00040981,13]
[313051736,1706694673686,-50000.0,0.00041,21]
[313051737,1706694673697,-800.0,0.00041,2]
[313051738,1706694673707,-3000.0,0.00041,21]
[313051739,1706694673717,-4284.97490497,0.00041,14]
[313051740,1706694673727,-2022.14239244,0.00041,12]
[313051741,1706694673737,-2000.0,0.00041,2]
[313051742,1706694673747,-154.252606,0.00041,16]
[313051743,1706694673757,-3831.9597441,0.00041067,2]
[313051744,1706694673767,-500.0,0.00041095,5]
[313051745,1706694673779,-500.0,0.00041095,5]
[313051746,1706694673789,-500.0,0.00041095,5]
[313051747,1706694673799,-398.45128996,0.00041095,5]
[313051748,1706694673810,-500.0,0.00041095,5]
[313051749,1706694673820,-500.0,0.00041095,5]
[313051750,1706694673830,-500.0,0.00041095,5]
[313051751,1706694673840,-614.95,0.00041095,5]
[313051752,1706694673849,-954.59,0.00041095,5]
[313051753,1706694673858,-609.59568283,0.00041095,5]
[313051754,1706694673868,-523.05,0.00041095,5]
[313051755,1706694673878,-500.0,0.00041095,5]
[313051756,1706694673888,-708.95,0.00041095,5]
[313051757,1706694673897,-1406.6,0.00041095,5]
[313051758,1706694673906,-500.0,0.00041095,5]
[313051759,1706694673916,-591.76331002,0.00041095,5]
[313051760,1706694673925,-500.0,0.00041095,5]
[313051761,1706694673934,-500.0,0.00041095,5]
[313051762,1706694673944,-500.0,0.00041095,5]
[313051763,1706694673954,-612.53,0.00041095,5]
[313051764,1706694673963,-500.0,0.00041095,5]
[313051765,1706694673973,-500.0,0.00041095,5]
[313051766,1706694673983,-500.0,0.00041095,5]
[313051767,1706694673993,-500.0,0.00041095,5]
[313051768,1706694674003,-919.19,0.00041095,5]
[313051769,1706694674013,-1099.01,0.00041095,7]
[313051770,1706694674023,-988.7,0.00041095,5]
[313051771,1706694674033,-500.0,0.00041095,5]
[313051772,1706694674043,-500.0,0.00041095,5]
[313051773,1706694674052,-500.35,0.00041095,2]
[313051774,1706694674061,-500.0,0.00041095,5]
[313051775,1706694674071,-310.93928544,0.00041095,5]
[313051776,1706694674080,-721.58,0.00041095,5]
[313051777,1706694674089,-482.85345086,0.00041095,5]
[313051778,1706694674099,-500.0,0.00041095,5]
[313051779,1706694674108,-500.0,0.00041095,5]
[313051780,1706694674119,-1042.81,0.00041095,5]
[313051781,1706694674128,-540.17,0.00041095,5]
[313051782,1706694674138,-646.99346284,0.00041095,5]
[313051783,1706694674147,-271.14965536,0.00041095,5]
[313051784,1706694674158,-500.0,0.00041095,5]
[313051785,1706694674167,-500.0,0.00041095,5]
[313051786,1706694674176,-492.43,0.00041095,2]
[313051787,1706694674186,-577.86,0.00041095,5]
[313051788,1706694674195,-792.53,0.00041095,5]
[313051789,1706694674348,-630.09,0.00041095,5]
[313051790,1706694674359,-583.71,0.00041095,5]
[313051791,1706694674370,-281.68185703,0.00041095,5]
[313051792,1706694674382,-603.42,0.00041095,5]
[313051793,1706694674393,-500.0,0.00041095,5]
[313051794,1706694674403,-500.0,0.00041095,5]
[313051795,1706694674419,-500.0,0.00041095,5]
[313051796,1706694674433,-500.0,0.00041095,5]
[313051797,1706694674443,-500.0,0.00041095,5]
[313051798,1706694674453,-500.0,0.00041095,10]
[313051799,1706694674464,-200.77930859,0.00041095,5]
[313051800,1706694674474,-641.84,0.00041095,5]
[313051801,1706694674484,-772.86,0.00041095,5]
[313051802,1706694674494,-942.86,0.00041095,5]
[313051803,1706694674504,-500.0,0.00041095,5]
[313051804,1706694674514,-638.42250414,0.00041095,5]
[313051805,1706694674526,-1247.5,0.00041095,5]
[313051806,1706694674537,-500.0,0.00041095,5]
[313051807,1706694674547,-1000.0,0.00041095,7]
[313051808,1706694674556,-500.0,0.00041095,5]
[313051809,1706694674566,-500.0,0.00041095,5]
[313051810,1706694674576,-573.31,0.00041095,5]
[313051811,1706694674586,-886.57,0.00041095,5]
[313051812,1706694674596,-500.0,0.00041095,5]
[313051813,1706694674606,-802.81,0.00041095,5]
[313051814,1706694674616,-1000.0,0.00041095,3]
[313051815,1706694674626,-1000.0,0.00041095,3]
[313051816,1706694674636,-1000.0,0.00041095,3]
[313051817,1706694674646,-1000.0,0.00041095,3]
[313051818,1706694674657,-580.02,0.00041095,5]
[313051819,1706694674667,-1000.0,0.00041095,3]
[313051820,1706694674677,-1000.0,0.00041095,3]
[313051821,1706694674687,-1000.0,0.00041095,3]
[313051822,1706694674697,-1000.0,0.00041095,3]
[313051823,1706694674707,-1000.0,0.00041095,3]
[313051824,1706694674717,-1000.0,0.00041095,3]
[313051825,1706694674727,-1000.0,0.00041095,3]
[313051826,1706694674737,-1000.0,0.00041095,3]
[313051827,1706694674747,-743.23493108,0.00041095,3]
[313051828,1706694674757,-500.0,0.00041095,5]
[313051829,1706694674766,-769.97,0.00041095,5]
[313051830,1706694674778,-991.05,0.00041095,2]
[313051831,1706694674788,-829.21,0.00041095,5]
[313051832,1706694674797,-1772.16,0.00041095,5]
[313051833,1706694674807,-500.0,0.00041095,5]
[313051834,1706694674816,-550.68124234,0.00041095,5]
[313051835,1706694674825,-500.0,0.00041095,5]
[313051836,1706694674834,-500.0,0.00041095,5]
[313051837,1706694674844,-500.0,0.00041095,5]
[313051838,1706694674853,-500.0,0.00041095,5]
[313051839,1706694674863,-551.9,0.00041095,5]
[313051840,1706694674872,-1046.64702153,0.00041095,30]
[313051841,1706694674881,-576.97,0.00041095,5]
[313051842,1706694674890,-500.0,0.00041095,5]
[313051843,1706694674900,-742.58,0.00041095,5]
[313051844,1706694674909,-500.0,0.00041095,5]
[313051845,1706694674919,-500.0,0.00041095,5]
[313051846,1706694674929,-500.0,0.00041095,5]
[313051847,1706694674938,-500.0,0.00041095,5]
[313051848,1706694674948,-866.57,0.00041095,5]
[313051849,1706694674957,-487.31433893,0.00041095,5]
[313051850,1706694674967,-958.12,0.00041095,5]
[313051851,1706694674978,-500.0,0.00041095,5]
[313051852,1706694674987,-2301.48,0.00041095,5]
[313051853,1706694674998,-714.51,0.00041095,5]
[313051854,1706694675010,-528.8,0.00041095,5]
[313051855,1706694675020,-717.95,0.00041095,5]
[313051856,1706694675034,-500.0,0.00041095,5]
[313051857,1706694675045,-650.16,0.00041095,5]
[313051858,1706694675055,-500.0,0.00041095,5]
[313051859,1706694675076,-769.18,0.00041095,5]
[313051860,1706694675085,-2602.84,0.00041095,5]
[313051861,1706694675103,-500.0,0.00041095,5]
[313051862,1706694675117,-1414.55,0.00041095,5]
[313051863,1706694675127,-1414.55,0.00041095,5]
[313051864,1706694675143,-1414.55,0.00041095,5]
[313051865,1706694675153,-500.0,0.00041095,30]
[313051866,1706694675161,-500.0,0.00041095,30]
[313051867,1706694675171,-1414.55,0.00041095,5]
[313051868,1706694675180,-500.0,0.00041095,30]
[313051869,1706694675200,-1414.55,0.00041095,5]
[313051870,1706694675210,-500.0,0.00041095,30]
[313051871,1706694675219,-1414.55,0.00041095,5]
[313051872,1706694675228,-500.0,0.00041095,30]
[313051873,1706694675238,-500.0,0.00041095,5]
[313051874,1706694675247,-500.0,0.00041095,30]
[313051875,1706694675257,-500.0,0.00041095,5]
[313051876,1706694675270,-861.22,0.00041095,2]
[313051877,1706694675287,-1102.08,0.00041095,5]
[313051878,1706694675297,-540.93847352,0.00041095,5]
[313051879,1706694675308,-500.0,0.00041095,5]
[313051880,1706694675318,-435.1879772,0.00041095,5]
[313051881,1706694675331,-500.0,0.00041095,5]
[313051882,1706694675341,-1000.0,0.00041095,31]
[313051883,1706694675353,-288.37754639,0.00041095,5]
[313051884,1706694675366,-849.42,0.00041095,5]
[313051885,1706694675377,-2265.45,0.00041095,5]
[313051886,1706694675402,-299.67921633,0.00041095,5]
[313051887,1706694675420,-787.88,0.00041095,5]
[313051888,1706694675443,-2673.5,0.00041095,5]
[313051889,1706694675470,-573.60562387,0.00041095,5]
[313051890,1706694675482,-748.94,0.00041095,5]
[313051891,1706694675499,-1979.4,0.00041095,5]
[313051892,1706694675510,-500.0,0.00041095,5]
[313051893,1706694675521,-500.0,0.00041095,5]
[313051894,1706694675547,-1000.0,0.00041095,120]
[313051895,1706694675557,-787.6,0.00041095,5]
[313051896,1706694675568,-584.22,0.00041095,5]
[313051897,1706694675578,-1502.45,0.00041095,5]
[313051898,1706694675588,-6992.13,0.00041095,5]
[313051899,1706694675598,-500.0,0.00041095,5]
[313051900,1706694675611,-843.12,0.00041095,5]
[313051901,1706694675621,-500.0,0.00041095,5]
[313051902,1706694675631,-500.0,0.00041095,5]
[313051903,1706694675642,-1311.02,0.00041095,5]
[313051904,1706694675652,-978.74,0.00041095,5]
[313051905,1706694675662,-500.0,0.00041095,5]
[313051906,1706694675672,-559.12,0.00041095,5]
[313051907,1706694675682,-1639.35,0.00041095,2]
[313051908,1706694675692,-1333.35,0.00041095,5]
[313051909,1706694675702,-3627.45,0.00041095,5]
[313051910,1706694675712,-500.0,0.00041095,5]
[313051911,1706694675722,-923.07,0.00041095,5]
[313051912,1706694675733,-581.32,0.00041095,5]
[313051913,1706694675743,-500.0,0.00041095,5]
[313051914,1706694675754,-2637.97,0.00041095,5]
[313051915,1706694675764,-550.71,0.00041095,5]
[313051916,1706694675776,-2102.91,0.00041095,5]
[313051917,1706694675786,-3266.12,0.00041095,5]
[313051918,1706694675795,-2975.79,0.00041095,5]
[313051919,1706694675805,-833.84,0.00041095,5]
[313051920,1706694675815,-1721.76,0.00041095,5]
[313051921,1706694675824,-3438.52,0.00041095,5]
[313051922,1706694675834,-256.02551774,0.00041095,5]
[313051923,1706694675844,-1077.78,0.00041095,5]
[313051924,1706694675853,-500.0,0.00041095,5]
[313051925,1706694675862,-310.16837165,0.00041095,5]
[313051926,1706694675872,-500.0,0.00041095,5]
[313051927,1706694675881,-6564.97,0.00041095,5]
[313051928,1706694675891,-500.0,0.00041095,5]
[313051929,1706694675901,-3801.39,0.00041095,5]
[313051930,1706694675910,-500.0,0.00041095,5]
[313051931,1706694675919,-1008.58,0.00041095,5]
[313051932,1706694675928,-809.55,0.00041095,5]
[313051933,1706694675938,-2556.8,0.00041095,5]
[313051934,1706694675947,-513.37,0.00041095,5]
[313051935,1706694675977,-951.74,0.00041095,5]
[313051936,1706694675990,-635.04,0.00041095,5]
[313051937,1706694676001,-500.0,0.00041095,5]
[313051938,1706694676011,-756.38,0.00041095,5]
[313051939,1706694676021,-758.78,0.00041095,5]
[313051940,1706694676032,-918.29,0.00041095,5]
[313051941,1706694676045,-500.0,0.00041095,5]
[313051942,1706694676060,-1308.87,0.00041095,5]
[313051943,1706694676073,-1172.36,0.00041095,5]
[313051944,1706694676095,-742.8,0.00041095,5]
[313051945,1706694676116,-648.97417358,0.00041095,5]
[313051946,1706694676129,-1705.38,0.00041095,5]
[313051947,1706694676140,-1681.92,0.00041095,5]
[313051948,1706694676150,-500.0,0.00041095,5]
[313051949,1706694676160,-500.0,0.00041095,5]
[313051950,1706694676170,-500.0,0.00041095,5]
[313051951,1706694676180,-1100.12,0.00041095,5]
[313051952,1706694676190,-623.78,0.00041095,5]
[313051953,1706694676200,-520.11,0.00041095,5]
[313051954,1706694676210,-813.21,0.00041095,5]
[313051955,1706694676220,-538.14,0.00041095,5]
[313051956,1706694676231,-924.1,0.00041095,5]
[313051957,1706694676240,-874.95,0.00041095,5]
[313051958,1706694676250,-500.0,0.00041095,5]
[313051959,1706694676262,-1514.93,0.00041095,5]
[313051960,1706694676275,-500.0,0.00041095,5]
[313051961,1706694676285,-766.97,0.00041095,5]
[313051962,1706694676295,-1419.76,0.00041095,5]
[313051963,1706694676305,-1518.73,0.00041095,5]
[313051964,1706694676315,-778.08,0.00041095,5]
[313051965,1706694676325,-1142.46,0.00041095,5]
[313051966,1706694676335,-1585.17,0.00041095,5]
[313051967,1706694676344,-1360.69,0.00041095,5]
[313051968,1706694676354,-3427.93,0.00041095,5]
[313051969,1706694676365,-2181.53,0.00041095,5]
[313051970,1706694676375,-1681.32,0.00041095,5]
[313051971,1706694676386,-1578.68,0.00041095,5]
[313051972,1706694676395,-2245.27,0.00041095,5]
[313051973,1706694676404,-1541.05,0.00041095,5]
[313051974,1706694676414,-1184.78,0.00041095,5]
[313051975,1706694676424,-759.64,0.00041095,5]
[313051976,1706694676434,-615.38077569,0.00041095,5]
[313051977,1706694676444,-2411.41,0.00041095,5]
[313051978,1706694676454,-357.69592898,0.00041095,5]
[313051979,1706694676464,-721.86,0.00041095,5]
[313051980,1706694676475,-500.0,0.00041095,5]
[313051981,1706694676485,-4216.63,0.00041095,5]
[313051982,1706694676495,-875.44,0.00041095,5]
[313051983,1706694676505,-607.11,0.00041095,5]
[313051984,1706694676515,-4080.07,0.00041095,5]
[313051985,1706694676525,-1292.41,0.00041095,5]
[313051986,1706694676535,-2126.77,0.00041095,5]
[313051987,1706694676546,-678.84,0.00041095,5]
[313051988,1706694676556,-837.72,0.00041095,5]
[313051989,1706694676566,-500.0,0.00041095,5]
[313051990,1706694676577,-937.91,0.00041095,5]
[313051991,1706694676587,-500.0,0.00041095,5]
[313051992,1706694676597,-794.23,0.00041095,5]
[313051993,1706694676608,-5428.42,0.00041095,5]
[313051994,1706694676619,-500.0,0.00041095,5]
[313051995,1706694676784,-3250.72,0.00041095,5]
[313051996,1706694676796,-1723.78,0.00041095,5]
[313051997,1706694676806,-1600.13,0.00041095,2]
[313051998,1706694676815,-3841.13,0.00041095,5]
[313051999,1706694676826,-2499.59,0.00041095,5]
[313052000,1706694676836,-916.73,0.00041095,5]
[313052001,1706694676845,-1345.99,0.00041095,5]
[313052002,1706694676855,-1935.43,0.00041095,5]
[313052003,1706694676865,-1282.3,0.00041095,5]
[313052004,1706694676875,-866.24,0.00041095,5]
[313052005,1706694676885,-500.0,0.00041095,5]
[313052006,1706694676895,-501.06,0.00041095,5]
[313052007,1706694676905,-1553.81,0.00041095,5]
[313052008,1706694676914,-716.93,0.00041095,5]
[313052009,1706694676923,-795.16,0.00041095,5]
[313052010,1706694676933,-1000.0,0.00041095,2]
[313052011,1706694676943,-1701.51,0.00041095,5]
[313052012,1706694676952,-219.36045551,0.00041095,2]
[313052013,1706694676961,-500.0,0.00041095,5]
[313052014,1706694676972,-8182.09,0.00041095,5]
[313052015,1706694676982,-500.0,0.00041095,5]
[313052016,1706694676992,-500.0,0.00041095,5]
[313052017,1706694677002,-1231.59,0.00041095,5]
[313052018,1706694677011,-2488.68,0.00041095,5]
[313052019,1706694677021,-500.0,0.00041095,5]
[313052020,1706694677033,-500.0,0.00041095,5]